[Event "36th National Sub Junior 2019"]
[Site "Tiruchengode"]
[Date "2019.07.09"]
[Round "1.1"]
[White "Stepheena S"]
[Black "Divya Deshmukh"]
[Result "0-1"]
[ECO "B01"]
[WhiteElo "1230"]
[BlackElo "2373"]
[Annotator "NA"]
[PlyCount "78"]
[EventDate "2019.07.09"]
[EventCountry "IND"]
[SourceTitle "playchess.com"]
[Source "ChessBase"]
[SourceQuality "1"]
[TimeControl "5400+30"]

1. e4 {[%emt 0:00:00]} d5 {[%emt 0:00:00]} 2. exd5 {[%emt 0:00:07]} Nf6 {[%emt 0:00:00]} 3. d4 {[%emt 0:01:23]} Bg4 {[%emt 0:00:00]} 4. Nf3 {[%emt 0:02:04]} Qxd5 {[%emt 0:00:00]} 5. Nc3 {[%emt 0:02:18]} Qf5 {[%emt 0:01:04]} 6. Be2 {[%emt 0:01:57]} Nc6 {[%emt 0:00:28]} 7. a3 {[%emt 0:02:40]} O-O-O {[%emt 0:00:17]} 8. Be3 {[%emt 0:00:57]} Bxf3 {[%emt 0:03:24]} 9. gxf3 {[%emt 0:04:23]} e6 {[%emt 0:01:03]} 10. f4 {[%emt 0:12:55]} a6 {[%emt 0:04:23]} 11. Qd2 {[%emt 0:02:48]} Qh3 {[%emt 0:00:28]} 12. O-O-O {[%emt 0:01:45]} Bc5 {[%emt 0:01:59]} 13. Bf1 {[%emt 0:09:40]} Qh4 {[%emt 0:00:10]} 14. Ne2 {[%emt 0:00:55]} Bb6 {[%emt 0:00:32]} 15. Bg2 {[%emt 0:01:46]} Ne7 {[%emt 0:01:15]} 16. Ng3 {[%emt 0:03:53]} Ng6 {[%emt 0:06:40]} 17. Ne4 {[%emt 0:05:26]} Nxe4 {[%emt 0:01:22]} 18. Bxe4 {[%emt 0:00:23]} Nxf4 {[%emt 0:00:58]} 19. Bxf4 {[%emt 0:02:42]} Rxd4 {[%emt 0:00:08]} 20. Bxb7+ {[%emt 0:08:22]} Kxb7 {[%emt 0:00:13]} 21. Bg3 {[%emt 0:00:41]} Qh5 {[%emt 0:02:21]} 22. Qc3 {[%emt 0:02:03]} Rhd8 {[%emt 0:00:18]} 23. Rxd4 {[%emt 0:00:54]} Rxd4 {[%emt 0:00:03]} 24. Bxc7 {[%emt 0:01:46]} Qd5 {[%emt 0:00:03]} 25. Rg1 {[%emt 0:06:55]} Bxc7 {[%emt 0:00:04]} 26. h3 {[%emt 0:00:45]} Bh2 {[%emt 0:00:25]} 27. Re1 {[%emt 0:01:09]} Bf4+ {[%emt 0:00:16]} 28. Kb1 {[%emt 0:00:21]} Bd2 {[%emt 0:00:02]} 29. Qb3+ {[%emt 0:02:51]} Qxb3 {[%emt 0:00:04]} 30. cxb3 {[%emt 0:00:07]} Bxe1 {[%emt 0:00:02]} 31. f3 {[%emt 0:00:31]} Rd3 {[%emt 0:00:02]} 32. Kc2 {[%emt 0:00:33]} Rxf3 {[%emt 0:00:11]} 33. h4 {[%emt 0:00:20]} Bxh4 {[%emt 0:00:06]} 34. b4 {[%emt 0:00:04]} g5 {[%emt 0:00:04]} 35. a4 {[%emt 0:00:18]} g4 {[%emt 0:00:03]} 36. b5 {[%emt 0:00:05]} axb5 {[%emt 0:00:02]} 37. axb5 {[%emt 0:00:09]} g3 {[%emt 0:00:02]} 38. b3 {[%emt 0:00:15]} g2 {[%emt 0:00:02]} 39. b4 {[%emt 0:00:11]} g1=Q {[%emt 0:00:05]} 0-1

[Event "36th National Sub Junior 2019"]
[Site "Tiruchengode"]
[Date "2019.07.09"]
[Round "1.2"]
[White "Jain Nityata"]
[Black "Vaishnavi Badasheshi"]
[Result "1-0"]
[ECO "C45"]
[WhiteElo "2135"]
[BlackElo "1201"]
[Annotator "NA"]
[PlyCount "65"]
[EventDate "2019.07.09"]
[EventCountry "IND"]
[SourceTitle "playchess.com"]
[Source "ChessBase"]
[SourceQuality "1"]
[TimeControl "5400+30"]

1. e4 {[%emt 0:00:00]} e5 {[%emt 0:00:00]} 2. Nf3 {[%emt 0:00:00]} Nc6 {[%emt 0:00:00]} 3. d4 {[%emt 0:00:01]} exd4 {[%emt 0:00:02]} 4. Nxd4 {[%emt 0:00:05]} Bc5 {[%emt 0:00:15]} 5. Be3 {[%emt 0:00:08]} Bb6 {[%emt 0:00:18]} 6. Bc4 {[%emt 0:02:41]} d6 {[%emt 0:03:06]} 7. Nc3 {[%emt 0:04:01]} Nf6 {[%emt 0:05:30]} 8. f3 {[%emt 0:01:16]} h6 {[%emt 0:04:56]} 9. Qd2 {[%emt 0:01:15]} O-O {[%emt 0:02:43]} 10. O-O-O {[%emt 0:03:43]} Ne5 {[%emt 0:03:25]} 11. Be2 {[%emt 0:03:47]} Re8 {[%emt 0:04:53]} 12. g4 {[%emt 0:03:17]} Nh7 {[%emt 0:04:56]} 13. Rhg1 {[%emt 0:05:50]} a5 {[%emt 0:06:04]} 14. Kb1 {[%emt 0:10:34]} Bd7 {[%emt 0:13:58]} 15. Rg2 {[%emt 0:19:47]} Bc5 {[%emt 0:12:32]} 16. Rdg1 c6 {[%emt 0:06:15]} 17. g5 {[%emt 0:11:27]} hxg5 {[%emt 0:00:14]} 18. Bxg5 {[%emt 0:00:33]} Nxg5 {[%emt 0:00:29]} 19. Rxg5 {[%emt 0:00:04]} Ng6 {[%emt 0:05:42]} 20. Bc4 {[%emt 0:02:34]} Kf8 {[%emt 0:02:33]} 21. Bxf7 {[%emt 0:01:43]} Kxf7 {[%emt 0:02:02]} 22. Rxg6 {[%emt 0:00:07]} Rg8 {[%emt 0:01:11]} 23. Qf4+ {[%emt 0:00:53]} Ke8 {[%emt 0:00:45]} 24. Rxg7 {[%emt 0:03:25]} Rf8 {[%emt 0:00:52]} 25. Nf5 {[%emt 0:04:05]} Bxf5 {[%emt 0:03:18]} 26. exf5 {[%emt 0:00:10]} d5 {[%emt 0:02:44]} 27. Re1+ {[%emt 0:00:19]} Be7 {[%emt 0:00:04]} 28. f6 {[%emt 0:00:25]} Kd7 {[%emt 0:03:07]} 29. Rexe7+ {[%emt 0:00:22]} Kc8 {[%emt 0:00:43]} 30. Rc7+ {[%emt 0:00:05]} Kb8 {[%emt 0:00:09]} 31. Rxb7+ {[%emt 0:00:09]} Kc8 {[%emt 0:00:07]} 32. Rgc7+ {[%emt 0:00:05]} Qxc7 {[%emt 0:00:09]} 33. Qxc7# {[%emt 0:00:06]} 1-0

[Event "36th National Sub Junior 2019"]
[Site "Tiruchengode"]
[Date "2019.07.09"]
[Round "1.3"]
[White "Yamijala Koulini"]
[Black "Mrudul Dehankar"]
[Result "0-1"]
[ECO "B92"]
[WhiteElo "1200"]
[BlackElo "2074"]
[Annotator "NA"]
[PlyCount "62"]
[EventDate "2019.07.09"]
[EventCountry "IND"]
[SourceTitle "playchess.com"]
[Source "ChessBase"]
[SourceQuality "1"]
[TimeControl "5400+30"]

1. e4 {[%emt 0:00:00]} c5 {[%emt 0:00:00]} 2. Nf3 {[%emt 0:00:16]} d6 {[%emt 0:00:00]} 3. d4 {[%emt 0:00:26]} cxd4 {[%emt 0:00:07]} 4. Nxd4 {[%emt 0:00:34]} Nf6 {[%emt 0:00:09]} 5. Nc3 {[%emt 0:00:38]} a6 {[%emt 0:00:07]} 6. Be3 {[%emt 0:01:02]} e5 {[%emt 0:02:18]} 7. Nb3 {[%emt 0:02:29]} Be6 {[%emt 0:00:55]} 8. Be2 {[%emt 0:04:13]} Nbd7 {[%emt 0:07:22]} 9. O-O {[%emt 0:05:28]} b5 {[%emt 0:04:09]} 10. f3 {[%emt 0:11:03]} Nb6 {[%emt 0:04:01]} 11. Qd2 {[%emt 0:24:18]} Be7 {[%emt 0:14:01]} 12. Rad1 {[%emt 0:04:05]} b4 {[%emt 0:04:47]} 13. Nd5 {[%emt 0:01:44]} Nfxd5 {[%emt 0:02:11]} 14. exd5 {[%emt 0:02:52]} Nxd5 {[%emt 0:00:40]} 15. Bf2 {[%emt 0:01:02]} Nf4 {[%emt 0:00:53]} 16. Bg3 {[%emt 0:02:08]} Nxe2+ {[%emt 0:02:10]} 17. Qxe2 {[%emt 0:00:18]} Qc7 {[%emt 0:00:18]} 18. Qe4 O-O {[%emt 0:07:45]} 19. Qxb4 {[%emt 0:07:06]} a5 {[%emt 0:02:12]} 20. Qe4 {[%emt 0:03:41]} f5 {[%emt 0:04:44]} 21. Qe1 {[%emt 0:02:48]} Bc4 {[%emt 0:01:18]} 22. Qd2 {[%emt 0:06:46]} a4 {[%emt 0:01:44]} 23. Nc1 {[%emt 0:01:34]} Bxf1 {[%emt 0:00:31]} 24. Kxf1 {[%emt 0:00:39]} Rfc8 {[%emt 0:07:17]} 25. c3 {[%emt 0:02:32]} Qc4+ {[%emt 0:02:33]} 26. Ne2 {[%emt 0:00:56]} Qxa2 {[%emt 0:00:32]} 27. Nc1 {[%emt 0:05:54]} Qc4+ {[%emt 0:00:16]} 28. Qd3 {[%emt 0:00:14]} Rab8 {[%emt 0:01:23]} 29. Qxc4+ {[%emt 0:01:24]} Rxc4 {[%emt 0:00:02]} 30. Rd2 {[%emt 0:01:05]} Bg5 {[%emt 0:00:07]} 31. Rc2 {[%emt 0:00:54]} a3 {[%emt 0:02:04]} 0-1

[Event "36th National Sub Junior 2019"]
[Site "Tiruchengode"]
[Date "2019.07.09"]
[Round "1.4"]
[White "Jyothsna L"]
[Black "Rakghitha S M R"]
[Result "1-0"]
[ECO "D36"]
[WhiteElo "1939"]
[BlackElo "1198"]
[Annotator "NA"]
[PlyCount "66"]
[EventDate "2019.07.09"]
[EventCountry "IND"]
[SourceTitle "playchess.com"]
[Source "ChessBase"]
[SourceQuality "1"]
[TimeControl "5400+30"]

1. d4 d5 2. c4 c6 3. Nc3 e6 4. cxd5 exd5 5. Qc2 Bd6 6. Nf3 Nf6 7. Bg5 Nbd7 8. e3 O-O 9. Bd3 Qc7 10. O-O h6 11. Bh4 b6 12. Rac1 a6 13. Bf5 Bb7 14. Bxd7 Qxd7 15. Na4 Bc7 16. Qb3 Qd8 17. Ne5 g5 18. Bg3 Ne4 19. Qd1 c5 20. Ng4 {[%emt 1:40:00]} h5 {[%emt 1:40:00]} 21. Nh6+ {[%emt 0:00:30]} Kg7 {[%emt 0:00:30]} 22. Qxh5 {[%emt 0:00:30]} Qd7 {[%emt 0:00:30]} 23. Bxc7 {[%emt 0:00:30]} Rh8 {[%emt 0:00:30]} 24. Qxf7+ {[%emt 0:00:30]} Qxf7 {[%emt 0:00:30]} 25. Nxf7 {[%emt 0:00:30]} Kxf7 {[%emt 0:00:30]} 26. Nxb6 {[%emt 0:00:30]} Rae8 {[%emt 0:00:30]} 27. dxc5 {[%emt 0:00:30]} Rh6 {[%emt 0:00:30]} 28. b4 {[%emt 0:00:30]} Reh8 {[%emt 0:00:30]} 29. Rfd1 {[%emt 0:00:30]} g4 {[%emt 0:00:30]} 30. Bf4 {[%emt 0:00:30]} Rh5 {[%emt 0:00:30]} 31. c6 {[%emt 0:00:30]} g3 {[%emt 0:00:30]} 32. Bxg3 {[%emt 0:00:30]} Nxg3 {[%emt 0:00:30]} 33. fxg3 {[%emt 0:00:30]} Ke8 {[%emt 0:00:30]} 1-0

[Event "36th National Sub Junior 2019"]
[Site "Tiruchengode"]
[Date "2019.07.09"]
[Round "1.5"]
[White "Kapila R"]
[Black "Dhyana Patel"]
[Result "0-1"]
[ECO "A37"]
[WhiteElo "1197"]
[BlackElo "1900"]
[Annotator "NA"]
[PlyCount "104"]
[EventDate "2019.07.09"]
[EventCountry "IND"]
[SourceTitle "playchess.com"]
[Source "ChessBase"]
[SourceQuality "1"]
[TimeControl "5400+30"]

1. c4 {[%emt 0:00:22]} c5 {[%emt 0:00:11]} 2. Nc3 {[%emt 0:01:35]} Nc6 {[%emt 0:00:18]} 3. Nf3 {[%emt 0:03:07]} g6 {[%emt 0:00:17]} 4. g3 {[%emt 0:01:51]} Bg7 {[%emt 0:00:05]} 5. Bg2 {[%emt 0:02:40]} e6 {[%emt 0:00:43]} 6. e3 {[%emt 0:06:40]} Nge7 {[%emt 0:00:40]} 7. O-O {[%emt 0:05:47]} O-O {[%emt 0:00:41]} 8. d3 {[%emt 0:03:40]} d5 {[%emt 0:00:30]} 9. cxd5 {[%emt 0:03:23]} exd5 {[%emt 0:01:32]} 10. d4 {[%emt 0:01:44]} cxd4 {[%emt 0:03:08]} 11. Nxd4 {[%emt 0:00:56]} Nxd4 {[%emt 0:03:30]} 12. exd4 {[%emt 0:00:34]} Be6 {[%emt 0:00:49]} 13. Be3 {[%emt 0:06:10]} Qd7 {[%emt 0:00:50]} 14. Qb3 {[%emt 0:08:49]} Rfd8 {[%emt 0:01:31]} 15. Rfd1 {[%emt 0:04:00]} h6 {[%emt 0:01:38]} 16. Ne2 {[%emt 0:02:33]} Bg4 {[%emt 0:06:18]} 17. f3 {[%emt 0:02:35]} Be6 {[%emt 0:00:37]} 18. Rac1 {[%emt 0:04:07]} Rac8 {[%emt 0:00:45]} 19. Rc3 {[%emt 0:04:38]} Rxc3 {[%emt 0:03:41]} 20. Nxc3 {[%emt 0:01:09]} Rc8 {[%emt 0:00:15]} 21. Ne2 {[%emt 0:01:43]} b6 {[%emt 0:00:37]} 22. Qb4 {[%emt 0:03:18]} Nf5 {[%emt 0:03:55]} 23. Bf2 {[%emt 0:01:54]} Nd6 {[%emt 0:03:10]} 24. b3 {[%emt 0:02:38]} Rc2 {[%emt 0:00:38]} 25. Qe1 {[%emt 0:02:33]} Rxa2 {[%emt 0:01:05]} 26. Nc3 {[%emt 0:01:25]} Rb2 27. Rb1 {[%emt 0:00:30]} Rxb1 28. Qxb1 {[%emt 0:00:30]} Qc6 29. Qa1 {[%emt 0:00:30]} Nf5 30. Ne2 {[%emt 0:00:30]} a5 31. Qd1 {[%emt 0:00:30]} b5 32. Qd2 {[%emt 0:00:30]} b4 33. g4 {[%emt 0:00:30]} Nd6 34. Be3 {[%emt 0:00:30]} Kh7 35. Qa2 {[%emt 0:00:30]} Qb6 36. h4 {[%emt 0:00:30]} Nb5 37. Qd2 {[%emt 0:00:30]} Qc6 38. h5 {[%emt 0:00:30]} g5 39. Qd3+ {[%emt 0:00:30]} Kg8 40. Bd2 {[%emt 0:00:30]} Na3 41. Bc1 {[%emt 0:00:30]} Qc2 42. Qe3 {[%emt 0:00:30]} Qd1+ 43. Kf2 {[%emt 0:00:30]} Nc2 44. Qd2 {[%emt 0:00:30]} Qxd2 45. Bxd2 {[%emt 0:00:30]} Nxd4 46. Nxd4 {[%emt 0:00:30]} Bxd4+ 47. Ke2 {[%emt 0:00:30]} Bc3 48. Bc1 {[%emt 0:00:30]} d4 49. f4 {[%emt 0:00:30]} f6 50. Bf3 {[%emt 0:00:30]} Bxb3 51. Kd3 {[%emt 0:00:30]} a4 52. f5 {[%emt 0:00:30]} a3 0-1

[Event "36th National Sub Junior 2019"]
[Site "Tiruchengode"]
[Date "2019.07.10"]
[Round "2.1"]
[White "Divya Deshmukh"]
[Black "Swara Lakshmi S Nair"]
[Result "1-0"]
[ECO "B99"]
[WhiteElo "2373"]
[BlackElo "1450"]
[Annotator "ChessBase"]
[PlyCount "65"]
[EventDate "2019.07.09"]
[EventCountry "IND"]
[SourceTitle "playchess.com"]
[Source "ChessBase"]
[SourceQuality "1"]
[TimeControl "5400+30"]

1. e4 {[%emt 0:00:00]} c5 {[%emt 0:00:10]} 2. Nf3 {[%emt 0:00:00]} d6 {[%emt 0:00:44]} 3. d4 {[%emt 0:00:00]} cxd4 {[%emt 0:01:01]} 4. Nxd4 {[%emt 0:00:05]} Nf6 {[%emt 0:00:48]} 5. Nc3 {[%emt 0:00:10]} a6 {[%emt 0:00:37]} 6. Bg5 {[%emt 0:00:13]} e6 {[%emt 0:00:52]} 7. f4 {[%emt 0:00:03]} h6 {[%emt 0:00:23]} 8. Bh4 {[%emt 0:00:03]} Be7 {[%emt 0:00:58]} 9. Qf3 {[%emt 0:00:11]} Qc7 {[%emt 0:01:05]} 10. O-O-O {[%emt 0:00:29]} Nbd7 {[%emt 0:00:23]} 11. g4 {[%emt 0:00:11]} g5 {[%emt 0:00:52]} 12. e5 {[%emt 0:00:06]} gxh4 {[%emt 0:06:41]} 13. exf6 {[%emt 0:00:12]} Bxf6 {[%emt 0:04:03]} 14. Bg2 {[%emt 0:02:10]} Nc5 {[%emt 0:13:17]} 15. Rhe1 {[%emt 0:00:54]} Bd7 {[%emt 0:03:38]} 16. Nd5 {[%emt 0:03:50]} Qd8 {[%emt 0:08:31]} 17. Nf5 {[%emt 0:00:13]} Bc6 {[%emt 0:11:20]} 18. Nxf6+ {[%emt 0:15:30]} Qxf6 {[%emt 0:00:15]} 19. Nxd6+ {[%emt 0:00:04]} Ke7 {[%emt 0:03:03]} 20. Qe3 {[%emt 0:04:40]} Na4 {[%emt 0:05:57]} 21. Nf5+ {[%emt 0:00:14]} Kf8 {[%emt 0:11:12]} 22. Qa3+ {[%emt 0:00:43]} Kg8 {[%emt 0:00:35]} 23. Ne7+ {[%emt 0:01:31]} Kg7 {[%emt 0:00:30]} 24. Nxc6 {[%emt 0:00:05]} Qxf4+ {[%emt 0:01:22]} 25. Kb1 {[%emt 0:00:07]} bxc6 {[%emt 0:01:28]} 26. Bxc6 {[%emt 0:00:21]} Nb6 {[%emt 0:04:45]} 27. Bxa8 {[%emt 0:01:23]} Rxa8 {[%emt 0:00:08]} 28. Rf1 {[%emt 0:00:22]} Qxh2 {[%emt 0:03:49]} 29. Qe7 {[%emt 0:00:16]} Rf8 {[%emt 0:00:14]} 30. Rd8 {[%emt 0:00:15]} Rxd8 {[%emt 0:00:48]} 31. Rxf7+ {[%emt 0:00:13]} Kg8 {[%emt 0:00:21]} 32. Rg7+ {[%emt 0:00:03]} Kh8 {[%emt 0:00:10]} 33. Rh7+ {[%emt 0:00:02]} 1-0

[Event "36th National Sub Junior 2019"]
[Site "Tiruchengode"]
[Date "2019.07.10"]
[Round "2.2"]
[White "Femil Chelladurai"]
[Black "Jain Nityata"]
[Result "0-1"]
[ECO "C42"]
[WhiteElo "1446"]
[BlackElo "2135"]
[Annotator "NA"]
[PlyCount "94"]
[EventDate "2019.07.09"]
[EventCountry "IND"]
[SourceTitle "playchess.com"]
[Source "ChessBase"]
[SourceQuality "1"]
[TimeControl "5400+30"]

1. e4 {[%emt 0:00:45]} e5 {[%emt 0:00:00]} 2. Nf3 {[%emt 0:00:08]} Nf6 {[%emt 0:00:00]} 3. Nxe5 {[%emt 0:00:15]} d6 {[%emt 0:00:00]} 4. Nf3 {[%emt 0:00:19]} Nxe4 {[%emt 0:00:03]} 5. d3 {[%emt 0:00:34]} Nf6 {[%emt 0:00:08]} 6. Be2 {[%emt 0:00:06]} Nc6 {[%emt 0:03:08]} 7. Be3 {[%emt 0:00:39]} Bf5 {[%emt 0:00:54]} 8. Nbd2 {[%emt 0:01:05]} d5 {[%emt 0:02:02]} 9. Nb3 {[%emt 0:01:32]} Bd6 {[%emt 0:03:57]} 10. O-O {[%emt 0:02:02]} h6 {[%emt 0:13:11]} 11. Re1 {[%emt 0:01:03]} O-O {[%emt 0:00:45]} 12. Nh4 $11 {[%emt 0:02:21]} Bh7 {[%emt 0:01:53]} 13. f4 {[%emt 0:01:14]} d4 {[%emt 0:11:18]} 14. Bd2 {[%emt 0:02:57]} Nd5 {[%emt 0:01:58]} 15. Nf3 {[%emt 0:01:12]} Nxf4 {[%emt 0:02:34]} 16. Nbxd4 {[%emt 0:00:51]} Nxd4 {[%emt 0:01:04]} 17. Nxd4 {[%emt 0:00:26]} Bc5 {[%emt 0:01:33]} 18. Bxf4 {[%emt 0:00:37]} Qxd4+ {[%emt 0:00:10]} 19. Kh1 {[%emt 0:01:07]} Qxf4 {[%emt 0:00:09]} 20. Rf1 {[%emt 0:01:01]} Qe5 {[%emt 0:01:30]} 21. c3 {[%emt 0:01:57]} Bd6 {[%emt 0:00:37]} 22. g3 {[%emt 0:00:07]} Qd5+ {[%emt 0:00:24]} 23. Kg1 {[%emt 0:01:38]} Bc5+ {[%emt 0:02:59]} 24. d4 {[%emt 0:00:12]} Bb6 {[%emt 0:00:08]} 25. Rf4 {[%emt 0:03:30]} Be4 {[%emt 0:05:52]} 26. Qf1 {[%emt 0:02:49]} Rae8 {[%emt 0:03:53]} 27. Bc4 {[%emt 0:01:53]} Qd7 {[%emt 0:00:10]} 28. a4 {[%emt 0:02:43]} c6 {[%emt 0:01:09]} 29. b4 {[%emt 0:01:10]} Bd5 {[%emt 0:01:56]} 30. Bd3 {[%emt 0:00:16]} Bc7 {[%emt 0:00:33]} 31. Rf2 {[%emt 0:00:06]} Re7 {[%emt 0:02:19]} 32. Bf5 {[%emt 0:01:39]} Be6 {[%emt 0:00:15]} 33. Be4 {[%emt 0:00:13]} Bh3 {[%emt 0:01:55]} 34. Qd3 {[%emt 0:00:47]} Rfe8 {[%emt 0:01:50]} 35. Bg2 {[%emt 0:00:12]} Re1+ {[%emt 0:01:46]} 36. Rxe1 {[%emt 0:00:07]} Rxe1+ {[%emt 0:00:04]} 37. Rf1 {[%emt 0:00:06]} Rxf1+ {[%emt 0:00:09]} 38. Qxf1 {[%emt 0:00:10]} Bxg2 {[%emt 0:00:13]} 39. Kxg2 {[%emt 0:00:15]} Qd5+ {[%emt 0:00:05]} 40. Kg1 {[%emt 0:00:12]} a5 {[%emt 0:01:03]} 41. b5 {[%emt 0:00:40]} cxb5 {[%emt 0:00:10]} 42. axb5 {[%emt 0:00:04]} a4 {[%emt 0:01:09]} 43. Qd3 {[%emt 0:01:44]} Bb6 {[%emt 0:00:14]} 44. c4 {[%emt 0:00:26]} Qxd4+ {[%emt 0:00:07]} 45. Qxd4 {[%emt 0:00:04]} Bxd4+ {[%emt 0:00:06]} 46. Kg2 {[%emt 0:00:03]} a3 {[%emt 0:00:06]} 47. Kf3 {[%emt 0:00:03]} a2 {[%emt 0:00:06]} 0-1

[Event "36th National Sub Junior 2019"]
[Site "Tiruchengode"]
[Date "2019.07.10"]
[Round "2.3"]
[White "Mrudul Dehankar"]
[Black "Mishra Riya"]
[Result "1-0"]
[ECO "C28"]
[WhiteElo "2074"]
[BlackElo "1430"]
[Annotator "NA"]
[PlyCount "67"]
[EventDate "2019.07.09"]
[EventCountry "IND"]
[SourceTitle "playchess.com"]
[Source "ChessBase"]
[SourceQuality "1"]
[TimeControl "5400+30"]

1. e4 {[%emt 0:00:00]} e5 {[%emt 0:00:00]} 2. Nc3 {[%emt 0:00:08]} Nc6 {[%emt 0:00:07]} 3. Bc4 {[%emt 0:00:07]} Nf6 {[%emt 0:00:55]} 4. d3 {[%emt 0:00:07]} Bc5 {[%emt 0:00:09]} 5. f4 {[%emt 0:01:33]} exf4 {[%emt 0:05:07]} 6. Bxf4 {[%emt 0:02:15]} Bxg1 {[%emt 0:06:21]} 7. Rxg1 {[%emt 0:00:22]} d6 {[%emt 0:00:05]} 8. Qd2 {[%emt 0:11:45]} Be6 {[%emt 0:01:00]} 9. Bb3 {[%emt 0:08:52]} Bxb3 {[%emt 0:04:40]} 10. axb3 {[%emt 0:01:38]} Qd7 {[%emt 0:02:00]} 11. Bg5 {[%emt 0:02:27]} Ng8 {[%emt 0:05:29]} 12. Nd5 {[%emt 0:09:28]} f6 {[%emt 0:01:36]} 13. Bh4 {[%emt 0:01:11]} O-O-O {[%emt 0:00:44]} 14. b4 {[%emt 0:01:23]} Qg4 {[%emt 0:04:04]} 15. Bf2 {[%emt 0:05:14]} a6 {[%emt 0:01:06]} 16. c4 {[%emt 0:08:53]} Ne5 {[%emt 0:06:00]} 17. b5 {[%emt 0:07:32]} Kd7 {[%emt 0:15:18]} 18. bxa6 {[%emt 0:02:00]} bxa6 {[%emt 0:00:24]} 19. Rxa6 {[%emt 0:03:24]} Ne7 {[%emt 0:00:40]} 20. Nxc7 {[%emt 0:14:09]} N7c6 {[%emt 0:07:30]} 21. Nd5 {[%emt 0:01:13]} Rb8 {[%emt 0:01:51]} 22. Nb6+ {[%emt 0:03:15]} Ke7 {[%emt 0:01:23]} 23. h3 {[%emt 0:01:20]} Qe6 {[%emt 0:02:22]} 24. Kd1 {[%emt 0:01:23]} Rb7 {[%emt 0:01:13]} 25. Kc2 {[%emt 0:03:11]} Rhb8 {[%emt 0:03:32]} 26. b3 {[%emt 0:01:46]} Nd7 {[%emt 0:02:09]} 27. Nd5+ {[%emt 0:01:40]} Kf7 {[%emt 0:00:44]} 28. Rxc6 {[%emt 0:01:37]} Rxb3 {[%emt 0:00:48]} 29. Bd4 {[%emt 0:01:18]} Nc5 {[%emt 0:05:41]} 30. Rc7+ {[%emt 0:00:47]} Kf8 {[%emt 0:00:48]} 31. Nf4 {[%emt 0:01:10]} Qe8 {[%emt 0:01:53]} 32. Ra1 {[%emt 0:00:25]} Nxe4 {[%emt 0:05:06]} 33. Qe1 {[%emt 0:01:30]} d5 {[%emt 0:04:07]} 34. Nxd5 {[%emt 0:00:42]} 1-0

[Event "36th National Sub Junior 2019"]
[Site "Tiruchengode"]
[Date "2019.07.10"]
[Round "2.4"]
[White "Sanjana Raghunath"]
[Black "Jyothsna L"]
[Result "0-1"]
[ECO "A41"]
[WhiteElo "1427"]
[BlackElo "1939"]
[Annotator "NA"]
[PlyCount "136"]
[EventDate "2019.07.09"]
[EventCountry "IND"]
[SourceTitle "playchess.com"]
[Source "ChessBase"]
[SourceQuality "1"]
[TimeControl "5400+30"]

1. d4 {[%emt 0:00:00]} d6 {[%emt 0:01:23]} 2. Bf4 {[%emt 0:00:00]} f5 {[%emt 0:00:38]} 3. Nc3 {[%emt 0:01:13]} Nf6 {[%emt 0:00:09]} 4. f3 {[%emt 0:02:11]} Nh5 {[%emt 0:18:57]} 5. Bg5 {[%emt 0:04:52]} h6 {[%emt 0:06:35]} 6. Bh4 {[%emt 0:02:44]} Nf4 {[%emt 0:21:12]} 7. e4 {[%emt 0:02:02]} Ng6 {[%emt 0:00:35]} 8. Bf2 {[%emt 0:00:23]} e6 {[%emt 0:01:12]} 9. exf5 {[%emt 0:06:47]} exf5 {[%emt 0:00:39]} 10. Bc4 {[%emt 0:00:26]} c6 {[%emt 0:04:23]} 11. d5 {[%emt 0:03:57]} c5 {[%emt 0:07:26]} 12. Bg3 {[%emt 0:04:24]} Be7 {[%emt 0:05:00]} 13. Qe2 {[%emt 0:05:30]} O-O {[%emt 0:01:35]} 14. f4 {[%emt 0:11:13]} a6 {[%emt 0:15:58]} 15. a4 {[%emt 0:02:10]} Re8 {[%emt 0:01:54]} 16. Qd2 {[%emt 0:00:33]} Qb6 {[%emt 0:03:01]} 17. Nge2 {[%emt 0:02:39]} Nd7 {[%emt 0:05:52]} 18. O-O {[%emt 0:01:01]} Nf6 {[%emt 0:01:00]} 19. a5 {[%emt 0:00:29]} Qc7 {[%emt 0:00:18]} 20. Bf2 {[%emt 0:02:33]} Bd7 {[%emt 0:00:54]} 21. Ng3 {[%emt 0:00:28]} Ng4 {[%emt 0:00:47]} 22. h3 {[%emt 0:02:23]} Nxf2 {[%emt 0:00:10]} 23. Qxf2 {[%emt 0:00:08]} Bf6 {[%emt 0:00:38]} 24. Qd2 {[%emt 0:00:04]} Bd4+ {[%emt 0:00:28]} 25. Kh1 {[%emt 0:00:37]} Be3 {[%emt 0:00:32]} 26. Qd3 {[%emt 0:00:04]} Nxf4 {[%emt 0:00:26]} 27. Qd1 {[%emt 0:00:59]} Qd8 {[%emt 0:00:57]} 28. Rf3 {[%emt 0:00:20]} Qh4 {[%emt 0:00:35]} 29. Nf1 {[%emt 0:01:44]} Bd4 {[%emt 0:00:19]} 30. Qd2 {[%emt 0:00:25]} Ng6 {[%emt 0:00:26]} 31. Bd3 {[%emt 0:00:27]} Ne5 {[%emt 0:00:36]} 32. Rf4 {[%emt 0:00:05]} Qg5 {[%emt 0:00:20]} 33. h4 {[%emt 0:00:22]} Qf6 {[%emt 0:00:49]} 34. Bxf5 {[%emt 0:02:54]} Bxf5 {[%emt 0:00:32]} 35. Ng3 {[%emt 0:00:05]} Ng6 {[%emt 0:00:26]} 36. Nxf5 {[%emt 0:01:39]} Nxf4 {[%emt 0:00:06]} 37. Qxf4 {[%emt 0:00:05]} Rf8 {[%emt 0:00:56]} 38. Rf1 {[%emt 0:00:07]} Bxc3 {[%emt 0:00:31]} 39. bxc3 {[%emt 0:00:05]} Rae8 {[%emt 0:00:36]} 40. Qg4 {[%emt 0:00:26]} Kh7 {[%emt 0:00:27]} 41. Rf3 {[%emt 0:01:15]} Qg6 {[%emt 0:00:35]} 42. Qh3 {[%emt 0:00:16]} Re5 {[%emt 0:00:28]} 43. h5 {[%emt 0:01:37]} Qg5 {[%emt 0:00:22]} 44. Nxd6 {[%emt 0:00:47]} Rxf3 {[%emt 0:00:23]} 45. Qxf3 {[%emt 0:00:14]} Re1+ {[%emt 0:00:32]} 46. Kh2 {[%emt 0:00:08]} Qe5+ {[%emt 0:00:44]} 47. g3 {[%emt 0:00:15]} Qxd6 {[%emt 0:00:22]} 48. Qf5+ {[%emt 0:00:03]} Kg8 {[%emt 0:00:06]} 49. Qc8+ {[%emt 0:00:04]} Qf8 {[%emt 0:00:25]} 50. Qxf8+ {[%emt 0:00:07]} Kxf8 {[%emt 0:00:04]} 51. g4 {[%emt 0:00:04]} Re2+ {[%emt 0:00:07]} 52. Kg3 {[%emt 0:00:02]} Rxc2 {[%emt 0:00:05]} 53. Kf4 {[%emt 0:00:04]} Rxc3 {[%emt 0:00:10]} 54. Ke5 {[%emt 0:00:03]} Ke7 {[%emt 0:00:06]} 55. d6+ {[%emt 0:00:03]} Kd7 {[%emt 0:00:03]} 56. Kd5 {[%emt 0:00:03]} Rc1 {[%emt 0:00:16]} 57. Ke5 {[%emt 0:00:07]} Rd1 {[%emt 0:00:06]} 58. g5 {[%emt 0:00:04]} hxg5 {[%emt 0:00:10]} 59. h6 {[%emt 0:00:02]} gxh6 {[%emt 0:00:02]} 60. Kf6 {[%emt 0:00:05]} c4 {[%emt 0:00:09]} 61. Kg6 {[%emt 0:00:14]} Rxd6+ {[%emt 0:00:16]} 62. Kh5 {[%emt 0:00:04]} c3 {[%emt 0:00:06]} 63. Kg4 {[%emt 0:00:03]} c2 {[%emt 0:00:07]} 64. Kh5 {[%emt 0:00:04]} c1=Q {[%emt 0:00:07]} 65. Kg4 {[%emt 0:00:06]} Qf4+ {[%emt 0:00:06]} 66. Kh3 {[%emt 0:00:03]} b6 {[%emt 0:00:19]} 67. Kg2 {[%emt 0:00:06]} Rd2+ {[%emt 0:00:04]} 68. Kh3 {[%emt 0:00:04]} Qh4# {[%emt 0:00:04]} 0-1